[Event "Early-Titled-Tuesday-Blitz-March-19-2024"]
[Site "Chess.com"]
[Date "2024.03.19"]
[Round "2"]
[White "LeoWin2012"]
[Black "andrzej"]
[Result "0-1"]
[WhiteElo "2199"]
[BlackElo "2495"]
[TimeControl "180+1"]
[EndTime "8:19:02 PDT"]
[Termination "andrzej won by checkmate"]

1. d3 {[%clk 0:03:00.9]} 1... e5 {[%clk 0:02:57.5]} 2. Nc3 {[%clk 0:02:58.8]}
2... Nf6 {[%clk 0:02:57.2]} 3. Bg5 {[%clk 0:02:57.3]} 3... d5 {[%clk 0:02:52.4]}
4. e4 {[%clk 0:02:53.4]} 4... d4 {[%clk 0:02:51.9]} 5. Nd5 {[%clk 0:02:53.5]}
5... Be7 {[%clk 0:02:48.3]} 6. Nxe7 {[%clk 0:02:51.8]} 6... Qxe7 {[%clk
0:02:48.1]} 7. f4 {[%clk 0:02:47.1]} 7... h6 {[%clk 0:02:42.8]} 8. Bh4 {[%clk
0:02:43.9]} 8... exf4 {[%clk 0:02:34.9]} 9. Nf3 {[%clk 0:02:44.1]} 9... g5
{[%clk 0:02:34.3]} 10. Bf2 {[%clk 0:02:40.7]} 10... c5 {[%clk 0:02:34.5]} 11.
Qd2 {[%clk 0:02:32.1]} 11... Nc6 {[%clk 0:02:32.4]} 12. O-O-O {[%clk 0:02:28.1]}
12... Ng4 {[%clk 0:02:32]} 13. Re1 {[%clk 0:02:16.8]} 13... Be6 {[%clk
0:02:28.9]} 14. a3 {[%clk 0:02:14.9]} 14... O-O-O {[%clk 0:02:28.4]} 15. c3
{[%clk 0:02:13.4]} 15... Kb8 {[%clk 0:02:27]} 16. cxd4 {[%clk 0:02:11.9]} 16...
cxd4 {[%clk 0:02:26.5]} 17. Kb1 {[%clk 0:02:11.1]} 17... Ne3 {[%clk 0:02:24.5]}
18. g3 {[%clk 0:02:07.3]} 18... Bg4 {[%clk 0:02:20.3]} 19. Be2 {[%clk
0:02:02.4]} 19... Bxf3 {[%clk 0:02:16.2]} 20. Bxf3 {[%clk 0:02:01.8]} 20... Ne5
{[%clk 0:02:15.8]} 21. Bd1 {[%clk 0:01:59]} 21... Rc8 {[%clk 0:02:15.3]} 22.
gxf4 {[%clk 0:01:57.3]} 22... gxf4 {[%clk 0:02:16.2]} 23. Bb3 {[%clk 0:01:42.6]}
23... Qc5 {[%clk 0:02:12.3]} 24. Rc1 {[%clk 0:01:40.1]} 24... Qb5 {[%clk
0:02:12.3]} 25. Bc4 {[%clk 0:01:37.2]} 25... Qb6 {[%clk 0:02:00.4]} 26. Ba2
{[%clk 0:01:15.4]} 26... a6 {[%clk 0:01:58.9]} 27. Bh4 {[%clk 0:00:59.3]} 27...
Ka7 {[%clk 0:01:55]} 28. Be7 {[%clk 0:00:53.8]} 28... Rhe8 {[%clk 0:01:50.3]}
29. Bb4 {[%clk 0:00:53.2]} 29... Qb5 {[%clk 0:01:47.1]} 30. Bc4 {[%clk
0:00:49.1]} 30... N5xc4 {[%clk 0:01:43.4]} 31. dxc4 {[%clk 0:00:49.3]} 31...
Rxc4 {[%clk 0:01:43.8]} 32. Rxc4 {[%clk 0:00:46.3]} 32... Qxc4 {[%clk
0:01:32.8]} 33. Rc1 {[%clk 0:00:46.1]} 33... Qe6 {[%clk 0:01:31.2]} 34. Qxd4+
{[%clk 0:00:45.8]} 34... Ka8 {[%clk 0:01:31.5]} 35. Rc7 {[%clk 0:00:30.1]} 35...
Rc8 {[%clk 0:01:25.2]} 36. Qc3 {[%clk 0:00:09.4]} 36... Qxe4+ {[%clk 0:01:24]}
37. Ka1 {[%clk 0:00:07.6]} 37... Qh1+ {[%clk 0:01:17.2]} 38. Ka2 {[%clk
0:00:07.4]} 38... Qd5+ {[%clk 0:01:17.8]} 39. Ka1 {[%clk 0:00:07.2]} 39... Rxc7
{[%clk 0:00:39.7]} 40. Qxc7 {[%clk 0:00:08.1]} 40... Qc4 {[%clk 0:00:34.3]} 41.
Bc5 {[%clk 0:00:03]} 41... Qc1+ {[%clk 0:00:12.7]} 42. Ka2 {[%clk 0:00:03.1]}
42... Qc4+ {[%clk 0:00:13.4]} 43. Ka1 {[%clk 0:00:02]} 43... Qf1+ {[%clk
0:00:12.7]} 44. Ka2 {[%clk 0:00:02.4]} 44... Qc4+ {[%clk 0:00:12.1]} 45. Kb1
{[%clk 0:00:02]} 45... Qe4+ {[%clk 0:00:11.5]} 46. Ka2 {[%clk 0:00:02.4]} 46...
Qe8 {[%clk 0:00:11.8]} 47. Bxe3 {[%clk 0:00:01.7]} 47... fxe3 {[%clk 0:00:10.8]}
48. Qc1 {[%clk 0:00:02.5]} 48... e2 {[%clk 0:00:10.5]} 49. Qe1 {[%clk
0:00:03.2]} 49... Qe6+ {[%clk 0:00:11.1]} 50. Kb1 {[%clk 0:00:02.4]} 50... f5
{[%clk 0:00:12]} 51. Kc2 {[%clk 0:00:02.8]} 51... f4 {[%clk 0:00:12.1]} 52. Kd2
{[%clk 0:00:03.4]} 52... Qe3+ {[%clk 0:00:11.8]} 53. Kc2 {[%clk 0:00:03.3]}
53... f3 {[%clk 0:00:12.3]} 54. Qb4 {[%clk 0:00:03.1]} 54... e1=Q {[%clk
0:00:10.2]} 55. Qf8+ {[%clk 0:00:03.8]} 55... Ka7 {[%clk 0:00:10.5]} 56. b4
{[%clk 0:00:01.9]} 56... Q1d2+ {[%clk 0:00:10]} 57. Kb1 {[%clk 0:00:01.6]} 57...
Qb3+ {[%clk 0:00:10.4]} 58. Ka1 {[%clk 0:00:01.5]} 58... Qba2# {[%clk 0:00:11]}
0-1

[Event "Early-Titled-Tuesday-Blitz-March-19-2024"]
[Site "Chess.com"]
[Date "2024.03.19"]
[Round "2"]
[White "Winner_7777"]
[Black "Antipov_Mikhail_Al"]
[Result "1-0"]
[WhiteElo "2649"]
[BlackElo "2912"]
[TimeControl "180+1"]
[EndTime "8:19:09 PDT"]
[Termination "Winner_7777 won by resignation"]

1. d4 {[%clk 0:03:00.9]} 1... Nf6 {[%clk 0:03:00]} 2. c4 {[%clk 0:03:00.9]} 2...
e6 {[%clk 0:02:56]} 3. Nc3 {[%clk 0:03:01]} 3... Bb4 {[%clk 0:02:55.3]} 4. f3
{[%clk 0:03:01]} 4... O-O {[%clk 0:02:49.7]} 5. a3 {[%clk 0:03:01.4]} 5... Bxc3+
{[%clk 0:02:49.4]} 6. bxc3 {[%clk 0:03:02.3]} 6... Nc6 {[%clk 0:02:49.7]} 7. e4
{[%clk 0:03:02.3]} 7... Ne8 {[%clk 0:02:49.6]} 8. e5 {[%clk 0:02:58.8]} 8... d6
{[%clk 0:02:48.1]} 9. f4 {[%clk 0:02:59.4]} 9... dxe5 {[%clk 0:02:25.9]} 10.
fxe5 {[%clk 0:03:00.3]} 10... f6 {[%clk 0:02:26.1]} 11. Nf3 {[%clk 0:02:32]}
11... fxe5 {[%clk 0:02:25.2]} 12. dxe5 {[%clk 0:02:32.9]} 12... Qxd1+ {[%clk
0:02:03.8]} 13. Kxd1 {[%clk 0:02:33.8]} 13... b6 {[%clk 0:02:04.3]} 14. Bd3
{[%clk 0:02:09.2]} 14... Ba6 {[%clk 0:01:50.8]} 15. Re1 {[%clk 0:01:31]} 15...
Rd8 {[%clk 0:01:45]} 16. Kc2 {[%clk 0:01:29.1]} 16... Na5 {[%clk 0:01:43.7]} 17.
Bg5 {[%clk 0:00:28.8]} 17... Rxd3 {[%clk 0:01:03.3]} 18. Kxd3 {[%clk 0:00:26.2]}
18... h6 {[%clk 0:01:04.2]} 19. Be3 {[%clk 0:00:14.3]} 19... Nxc4 {[%clk
0:00:58.5]} 20. Kc2 {[%clk 0:00:14.7]} 20... c5 {[%clk 0:00:59.1]} 21. a4 {[%clk
0:00:07.2]} 21... Nc7 {[%clk 0:00:57.2]} 22. Rad1 {[%clk 0:00:05.7]} 22... Nd5
{[%clk 0:00:53.6]} 23. Bc1 {[%clk 0:00:06.3]} 23... Na5 {[%clk 0:00:28.4]} 24.
Re4 {[%clk 0:00:05.8]} 24... Bc4 {[%clk 0:00:27.6]} 25. Rde1 {[%clk 0:00:05.6]}
25... Rd8 {[%clk 0:00:16.5]} 26. Rg4 {[%clk 0:00:05]} 26... Kh7 {[%clk
0:00:15.9]} 27. Nd2 {[%clk 0:00:05.1]} 27... Bd3+ {[%clk 0:00:14.2]} 28. Kb2
{[%clk 0:00:03]} 28... Rd7 {[%clk 0:00:14.1]} 29. Ne4 {[%clk 0:00:02.9]} 29...
Nc4+ {[%clk 0:00:12.4]} 30. Kb3 {[%clk 0:00:03.5]} 30... Ne7 {[%clk 0:00:07.5]}
31. Nd6 {[%clk 0:00:03.3]} 31... Nxd6 {[%clk 0:00:04.5]} 32. exd6 {[%clk
0:00:04.2]} 32... Rxd6 {[%clk 0:00:05.4]} 33. Bf4 {[%clk 0:00:05]} 33... Rd7
{[%clk 0:00:04.7]} 34. Rg3 {[%clk 0:00:05.6]} 34... c4+ {[%clk 0:00:03.1]} 35.
Kb2 {[%clk 0:00:06.1]} 35... Bf5 {[%clk 0:00:03.4]} 36. Be5 {[%clk 0:00:06.5]}
36... Nc6 {[%clk 0:00:03.4]} 37. Rge3 {[%clk 0:00:05.5]} 37... Rd2+ {[%clk
0:00:03.2]} 38. Ka3 {[%clk 0:00:04.6]} 38... Rxg2 {[%clk 0:00:02.6]} 39. Rg3
{[%clk 0:00:05.3]} 39... Rxg3 {[%clk 0:00:02.1]} 40. Bxg3 {[%clk 0:00:06.2]}
40... Kg6 {[%clk 0:00:02.5]} 41. Rd1 {[%clk 0:00:06.5]} 41... e5 {[%clk
0:00:02.7]} 42. Rd6+ {[%clk 0:00:06.7]} 42... Kg5 {[%clk 0:00:02.9]} 43. Rxc6
{[%clk 0:00:07.4]} 43... e4 {[%clk 0:00:03.8]} 44. Rxc4 {[%clk 0:00:07.6]} 44...
Kg4 {[%clk 0:00:04.3]} 45. Rd4 {[%clk 0:00:07.5]} 45... g5 {[%clk 0:00:04.3]}
46. Kb4 {[%clk 0:00:05.1]} 46... h5 {[%clk 0:00:04.3]} 47. c4 {[%clk 0:00:04.5]}
47... h4 {[%clk 0:00:04.5]} 48. Be1 {[%clk 0:00:05.2]} 48... Kf3 {[%clk
0:00:02.3]} 49. Rd5 {[%clk 0:00:05.7]} 49... Kf4 {[%clk 0:00:02.1]} 50. Bd2+
{[%clk 0:00:05.6]} 50... Kg4 {[%clk 0:00:02.1]} 51. c5 {[%clk 0:00:05.4]} 51...
bxc5+ {[%clk 0:00:02.4]} 52. Kxc5 {[%clk 0:00:06.3]} 52... h3 {[%clk 0:00:02.1]}
53. Kd4 {[%clk 0:00:05.3]} 53... Bc8 {[%clk 0:00:01.6]} 54. Rxg5+ {[%clk
0:00:05.3]} 54... Kf3 {[%clk 0:00:02.5]} 55. Rg3+ {[%clk 0:00:05.4]} 55... Ke2
{[%clk 0:00:03.1]} 56. Be3 {[%clk 0:00:06]} 56... Bd7 {[%clk 0:00:03.6]} 57.
Kxe4 {[%clk 0:00:06.1]} 57... Bxa4 {[%clk 0:00:03.9]} 58. Rxh3 {[%clk
0:00:05.7]} 58... a5 {[%clk 0:00:04.8]} 59. Rg3 {[%clk 0:00:05.1]} 59... Bc6+
{[%clk 0:00:03.5]} 60. Kd4 {[%clk 0:00:05.2]} 60... a4 {[%clk 0:00:04.4]} 1-0

[Event "Early-Titled-Tuesday-Blitz-March-19-2024"]
[Site "Chess.com"]
[Date "2024.03.19"]
[Round "2"]
[White "kenta1234"]
[Black "Sharan_Rao"]
[Result "0-1"]
[WhiteElo "2811"]
[BlackElo "2596"]
[TimeControl "180+1"]
[EndTime "8:19:09 PDT"]
[Termination "Sharan_Rao won on time"]

1. d4 {[%clk 0:02:58.7]} 1... d5 {[%clk 0:03:00.1]} 2. Bg5 {[%clk 0:02:58.1]}
2... c6 {[%clk 0:02:58.7]} 3. c3 {[%clk 0:02:57.8]} 3... Qb6 {[%clk 0:02:59]} 4.
Qb3 {[%clk 0:02:57.7]} 4... h6 {[%clk 0:02:58.1]} 5. Bh4 {[%clk 0:02:57.3]} 5...
Bf5 {[%clk 0:02:57.2]} 6. Nd2 {[%clk 0:02:56.4]} 6... Nd7 {[%clk 0:02:57.4]} 7.
Ngf3 {[%clk 0:02:55.9]} 7... e5 {[%clk 0:02:57.5]} 8. dxe5 {[%clk 0:02:49.1]}
8... Be7 {[%clk 0:02:54.7]} 9. Bg3 {[%clk 0:02:44.8]} 9... Nc5 {[%clk
0:02:51.2]} 10. Qxb6 {[%clk 0:02:43.9]} 10... axb6 {[%clk 0:02:52.1]} 11. Nd4
{[%clk 0:02:44.2]} 11... Bd7 {[%clk 0:02:49.8]} 12. f4 {[%clk 0:02:40.2]} 12...
Na4 {[%clk 0:02:48.9]} 13. O-O-O {[%clk 0:02:27.7]} 13... b5 {[%clk 0:02:48.9]}
14. e4 {[%clk 0:02:24.4]} 14... b4 {[%clk 0:02:47]} 15. cxb4 {[%clk 0:02:17.8]}
15... Bxb4 {[%clk 0:02:47.8]} 16. exd5 {[%clk 0:02:16.4]} 16... cxd5 {[%clk
0:02:48.7]} 17. Bb5 {[%clk 0:02:10.7]} 17... Ne7 {[%clk 0:02:49]} 18. Bxd7+
{[%clk 0:02:07.4]} 18... Kxd7 {[%clk 0:02:49.9]} 19. Kb1 {[%clk 0:02:05.4]}
19... Rhc8 {[%clk 0:02:44.3]} 20. Nc2 {[%clk 0:02:05.2]} 20... Bc5 {[%clk
0:02:34.3]} 21. Nb3 {[%clk 0:02:04.7]} 21... Bb6 {[%clk 0:02:31.9]} 22. Bh4
{[%clk 0:02:04.5]} 22... Rc4 {[%clk 0:02:30.3]} 23. Rhf1 {[%clk 0:01:56.4]}
23... Rac8 {[%clk 0:02:29]} 24. Na3 {[%clk 0:01:52.8]} 24... Re4 {[%clk
0:02:23.5]} 25. Bxe7 {[%clk 0:01:48.3]} 25... Kxe7 {[%clk 0:02:24.4]} 26. Rxd5
{[%clk 0:01:48.7]} 26... g5 {[%clk 0:02:07.4]} 27. f5 {[%clk 0:01:44.2]} 27...
Be3 {[%clk 0:01:59.5]} 28. Nb5 {[%clk 0:01:40.8]} 28... Bf4 {[%clk 0:01:56.6]}
29. Nd6 {[%clk 0:01:37.5]} 29... Rd8 {[%clk 0:01:47.2]} 30. Ra5 {[%clk
0:01:23.1]} 30... Rxe5 {[%clk 0:01:42.2]} 31. Nxb7 {[%clk 0:01:03.7]} 31... Rxa5
{[%clk 0:01:34.6]} 32. N7xa5 {[%clk 0:00:53.9]} 32... Rd5 {[%clk 0:01:33.3]} 33.
g3 {[%clk 0:00:51.6]} 33... Bc7 {[%clk 0:01:30.5]} 34. Nc4 {[%clk 0:00:51.8]}
34... h5 {[%clk 0:01:23.9]} 35. Nbd2 {[%clk 0:00:50.5]} 35... h4 {[%clk
0:01:20.9]} 36. gxh4 {[%clk 0:00:50.9]} 36... gxh4 {[%clk 0:01:21.8]} 37. h3
{[%clk 0:00:51.8]} 37... Nc5 {[%clk 0:01:17.7]} 38. Kc2 {[%clk 0:00:50.9]} 38...
Nd3 {[%clk 0:01:17.4]} 39. a3 {[%clk 0:00:49]} 39... Bg3 {[%clk 0:01:17.1]} 40.
b4 {[%clk 0:00:46.7]} 40... Ne1+ {[%clk 0:01:15.6]} 41. Kb2 {[%clk 0:00:35.9]}
41... Rd3 {[%clk 0:01:08.7]} 42. Ne4 {[%clk 0:00:32.4]} 42... Ng2 {[%clk
0:00:56.7]} 43. Kc2 {[%clk 0:00:26.1]} 43... Rd4 {[%clk 0:00:55]} 44. f6+ {[%clk
0:00:24.5]} 44... Ke6 {[%clk 0:00:41.1]} 45. Ned2 {[%clk 0:00:20.5]} 45... Kd5
{[%clk 0:00:38.5]} 46. Rf5+ {[%clk 0:00:18.1]} 46... Ke6 {[%clk 0:00:38.8]} 47.
Rf3 {[%clk 0:00:16.1]} 47... Ne1+ {[%clk 0:00:38.9]} 48. Kc3 {[%clk 0:00:16]}
48... Nxf3 {[%clk 0:00:39.6]} 49. Nxf3 {[%clk 0:00:16]} 49... Rf4 {[%clk
0:00:37.1]} 50. Ncd2 {[%clk 0:00:15.5]} 50... Rxf6 {[%clk 0:00:33.2]} 51. b5
{[%clk 0:00:16.1]} 51... Be5+ {[%clk 0:00:32.9]} 52. Kc4 {[%clk 0:00:15.8]}
52... Rf4+ {[%clk 0:00:33]} 53. Kc5 {[%clk 0:00:15.3]} 53... Bd6+ {[%clk
0:00:33.5]} 54. Kc6 {[%clk 0:00:15.9]} 54... Bxa3 {[%clk 0:00:32.2]} 55. b6
{[%clk 0:00:16]} 55... Bd6 {[%clk 0:00:32]} 56. Ng5+ {[%clk 0:00:11]} 56... Ke7
{[%clk 0:00:27.1]} 57. Nge4 {[%clk 0:00:11]} 57... Be5 {[%clk 0:00:24.8]} 58. b7
{[%clk 0:00:10.7]} 58... f5 {[%clk 0:00:24.7]} 59. Ng5 {[%clk 0:00:05.4]} 59...
Rb4 {[%clk 0:00:21]} 60. Ngf3 {[%clk 0:00:04.8]} 60... Bf4 {[%clk 0:00:20.2]}
61. Nf1 {[%clk 0:00:02.2]} 61... Kf6 {[%clk 0:00:19.2]} 62. N1d2 {[%clk
0:00:01.1]} 62... Bxd2 {[%clk 0:00:18.9]} 63. Nxd2 {[%clk 0:00:01.4]} 63... f4
{[%clk 0:00:17.8]} 0-1

[Event "Early-Titled-Tuesday-Blitz-March-19-2024"]
[Site "Chess.com"]
[Date "2024.03.19"]
[Round "2"]
[White "tusplingher"]
[Black "Matibar"]
[Result "1/2-1/2"]
[WhiteElo "2466"]
[BlackElo "2781"]
[TimeControl "180+1"]
[EndTime "8:19:10 PDT"]
[Termination "Game drawn by stalemate"]

1. e4 {[%clk 0:03:00.9]} 1... c5 {[%clk 0:02:56.5]} 2. Nf3 {[%clk 0:03:00.2]}
2... a6 {[%clk 0:02:55.4]} 3. c3 {[%clk 0:02:49.3]} 3... e6 {[%clk 0:02:54.4]}
4. d4 {[%clk 0:02:48]} 4... d5 {[%clk 0:02:54.6]} 5. e5 {[%clk 0:02:44.8]} 5...
Bd7 {[%clk 0:02:53.9]} 6. Bd3 {[%clk 0:02:41.2]} 6... Nc6 {[%clk 0:02:52.9]} 7.
O-O {[%clk 0:02:38.1]} 7... Qb6 {[%clk 0:02:52.6]} 8. dxc5 {[%clk 0:02:22.7]}
8... Bxc5 {[%clk 0:02:52]} 9. b4 {[%clk 0:02:22]} 9... Be7 {[%clk 0:02:48.1]}
10. a4 {[%clk 0:02:22.1]} 10... Qc7 {[%clk 0:02:47.2]} 11. Re1 {[%clk
0:01:58.8]} 11... h5 {[%clk 0:02:08.2]} 12. Bf4 {[%clk 0:01:44.7]} 12... Nh6
{[%clk 0:02:07.5]} 13. Nbd2 {[%clk 0:01:40.5]} 13... Qd8 {[%clk 0:01:52.6]} 14.
b5 {[%clk 0:01:15.8]} 14... Na5 {[%clk 0:01:45.7]} 15. c4 {[%clk 0:01:13.1]}
15... dxc4 {[%clk 0:01:40.1]} 16. Nxc4 {[%clk 0:01:11.8]} 16... Nxc4 {[%clk
0:01:40.6]} 17. Bxc4 {[%clk 0:01:11.9]} 17... Nf5 {[%clk 0:01:41]} 18. bxa6
{[%clk 0:00:58.9]} 18... bxa6 {[%clk 0:01:40.6]} 19. Nd4 {[%clk 0:00:58.3]}
19... Nxd4 {[%clk 0:01:35.9]} 20. Qxd4 {[%clk 0:00:58.1]} 20... O-O {[%clk
0:01:36.8]} 21. Red1 {[%clk 0:00:53.1]} 21... Bc6 {[%clk 0:01:33.7]} 22. Qxd8
{[%clk 0:00:41.1]} 22... Rfxd8 {[%clk 0:01:32.8]} 23. Rxd8+ {[%clk 0:00:40.9]}
23... Bxd8 {[%clk 0:01:33.1]} 24. Be3 {[%clk 0:00:34.9]} 24... a5 {[%clk
0:01:22.2]} 25. Bb5 {[%clk 0:00:34.6]} 25... Bd5 {[%clk 0:01:22]} 26. Rc1 {[%clk
0:00:33.1]} 26... g5 {[%clk 0:01:19.2]} 27. Bc6 {[%clk 0:00:25.8]} 27... Rc8
{[%clk 0:01:02.2]} 28. Bxd5 {[%clk 0:00:25.5]} 28... Rxc1+ {[%clk 0:01:03.1]}
29. Bxc1 {[%clk 0:00:25.9]} 29... exd5 {[%clk 0:01:04]} 30. Kf1 {[%clk
0:00:22.8]} 30... Kg7 {[%clk 0:01:03.7]} 31. f3 {[%clk 0:00:17.7]} 31... g4
{[%clk 0:00:55.9]} 32. Ke2 {[%clk 0:00:11.2]} 32... Kg6 {[%clk 0:00:55.7]} 33.
f4 {[%clk 0:00:06.6]} 33... Kf5 {[%clk 0:00:53]} 34. Kd3 {[%clk 0:00:06.9]}
34... h4 {[%clk 0:00:44.7]} 35. Be3 {[%clk 0:00:03.5]} 35... h3 {[%clk 0:00:42]}
36. g3 {[%clk 0:00:03.7]} 36... Ke6 {[%clk 0:00:21.4]} 37. Bc5 {[%clk
0:00:03.7]} 37... f6 {[%clk 0:00:10.2]} 38. exf6 {[%clk 0:00:03.6]} 38... Bxf6
{[%clk 0:00:10.3]} 39. Bb6 {[%clk 0:00:02.6]} 39... Be7 {[%clk 0:00:09.5]} 40.
Bxa5 {[%clk 0:00:01.6]} 40... Bc5 {[%clk 0:00:09.8]} 41. Be1 {[%clk 0:00:01.2]}
41... Kd6 {[%clk 0:00:08.2]} 42. Ke2 {[%clk 0:00:01.7]} 42... Ke6 {[%clk
0:00:07.3]} 43. a5 {[%clk 0:00:01.9]} 43... Kd6 {[%clk 0:00:07.2]} 44. Bf2
{[%clk 0:00:02.3]} 44... Bb4 {[%clk 0:00:06.6]} 45. a6 {[%clk 0:00:02.8]} 45...
Kc6 {[%clk 0:00:07.1]} 46. a7 {[%clk 0:00:03.5]} 46... Kb7 {[%clk 0:00:07]} 47.
Kd3 {[%clk 0:00:04.2]} 47... Ba5 {[%clk 0:00:06.9]} 48. f5 {[%clk 0:00:04.4]}
48... Bd8 {[%clk 0:00:07.1]} 49. Kd4 {[%clk 0:00:02.1]} 49... Bb6+ {[%clk
0:00:07.1]} 50. Kxd5 {[%clk 0:00:02.7]} 50... Bxf2 {[%clk 0:00:07.8]} 51. f6
{[%clk 0:00:03.4]} 51... Be1 {[%clk 0:00:07.5]} 52. f7 {[%clk 0:00:03.4]} 52...
Bb4 {[%clk 0:00:07.7]} 53. Ke6 {[%clk 0:00:03.9]} 53... Kxa7 {[%clk 0:00:08.2]}
54. Kf5 {[%clk 0:00:03.9]} 54... Kb7 {[%clk 0:00:08.8]} 55. Kxg4 {[%clk
0:00:04.4]} 55... Kc7 {[%clk 0:00:09.4]} 56. Kxh3 {[%clk 0:00:04.8]} 56... Kd7
{[%clk 0:00:10.1]} 57. Kg4 {[%clk 0:00:05.4]} 57... Ke7 {[%clk 0:00:10.4]} 58.
Kf5 {[%clk 0:00:06]} 58... Kxf7 {[%clk 0:00:11]} 59. g4 {[%clk 0:00:06.6]} 59...
Be1 {[%clk 0:00:10.6]} 60. g5 {[%clk 0:00:06.6]} 60... Bh4 {[%clk 0:00:10.5]}
61. Kg4 {[%clk 0:00:06.9]} 61... Bxg5 {[%clk 0:00:09.6]} 62. Kxg5 {[%clk
0:00:07.5]} 62... Kg7 {[%clk 0:00:10.3]} 63. h4 {[%clk 0:00:08.2]} 63... Kh7
{[%clk 0:00:11]} 64. h5 {[%clk 0:00:09]} 64... Kh8 {[%clk 0:00:11.9]} 65. h6
{[%clk 0:00:09.8]} 65... Kg8 {[%clk 0:00:12.8]} 66. Kh5 {[%clk 0:00:10.6]} 66...
Kh8 {[%clk 0:00:13.7]} 67. Kg5 {[%clk 0:00:11.2]} 67... Kg8 {[%clk 0:00:14.6]}
68. Kf5 {[%clk 0:00:11.8]} 68... Kh8 {[%clk 0:00:15.5]} 69. Kf6 {[%clk
0:00:12.5]} 69... Kg8 {[%clk 0:00:16.4]} 70. Kg5 {[%clk 0:00:13.1]} 70... Kh8
{[%clk 0:00:17.3]} 71. Kg6 {[%clk 0:00:13.8]} 71... Kg8 {[%clk 0:00:18.2]} 72.
h7+ {[%clk 0:00:14.6]} 72... Kh8 {[%clk 0:00:19.1]} 73. Kh6 {[%clk 0:00:15.5]}
1/2-1/2

[Event "Early-Titled-Tuesday-Blitz-March-19-2024"]
[Site "Chess.com"]
[Date "2024.03.19"]
[Round "2"]
[White "GM_dmitrij"]
[Black "Aradhya2000"]
[Result "1-0"]
[WhiteElo "3075"]
[BlackElo "2704"]
[TimeControl "180+1"]
[EndTime "8:19:12 PDT"]
[Termination "GM_dmitrij won by resignation"]

1. c4 {[%clk 0:03:00.9]} 1... e5 {[%clk 0:02:59.8]} 2. g3 {[%clk 0:02:57.5]}
2... d5 {[%clk 0:02:58.7]} 3. cxd5 {[%clk 0:02:38.3]} 3... Qxd5 {[%clk
0:02:58.7]} 4. Nf3 {[%clk 0:02:37.7]} 4... Nc6 {[%clk 0:02:59.1]} 5. Nc3 {[%clk
0:02:37.7]} 5... Qd8 {[%clk 0:02:59.2]} 6. Bg2 {[%clk 0:02:37.4]} 6... Nf6
{[%clk 0:02:59.4]} 7. O-O {[%clk 0:02:36.3]} 7... h6 {[%clk 0:02:59.3]} 8. Rb1
{[%clk 0:02:28.7]} 8... Bd6 {[%clk 0:02:57]} 9. d3 {[%clk 0:02:27.7]} 9... O-O
{[%clk 0:02:56.5]} 10. Nd2 {[%clk 0:02:25.4]} 10... Be6 {[%clk 0:02:45.4]} 11.
Nc4 {[%clk 0:02:25.1]} 11... Rb8 {[%clk 0:02:36.5]} 12. b3 {[%clk 0:02:20.9]}
12... Qd7 {[%clk 0:02:28]} 13. Re1 {[%clk 0:02:14.1]} 13... Bh3 {[%clk
0:02:19.9]} 14. Bh1 {[%clk 0:02:13.9]} 14... Rfe8 {[%clk 0:01:28.2]} 15. Bb2
{[%clk 0:02:14]} 15... a6 {[%clk 0:01:23.9]} 16. a3 {[%clk 0:02:11.4]} 16... Bc5
{[%clk 0:01:24.2]} 17. b4 {[%clk 0:02:00.9]} 17... Ba7 {[%clk 0:01:24.2]} 18. e3
{[%clk 0:01:46.8]} 18... Rbd8 {[%clk 0:01:22]} 19. b5 {[%clk 0:01:40.4]} 19...
axb5 {[%clk 0:00:55.9]} 20. Nxb5 {[%clk 0:01:41.3]} 20... Bc5 {[%clk 0:00:55.8]}
21. Rc1 {[%clk 0:01:13.4]} 21... b6 {[%clk 0:00:52.4]} 22. Qc2 {[%clk
0:01:07.3]} 22... Bf5 {[%clk 0:00:50.6]} 23. Qa4 {[%clk 0:01:00.3]} 23... Bxd3
{[%clk 0:00:49.1]} 24. Nxc7 {[%clk 0:00:53.2]} 24... Qxc7 {[%clk 0:00:42.3]} 25.
Qxc6 {[%clk 0:00:53.2]} 25... Qb8 {[%clk 0:00:32.3]} 26. Qb5 {[%clk 0:00:40]}
26... Re6 {[%clk 0:00:31.5]} 27. Qb3 {[%clk 0:00:38.5]} 27... e4 {[%clk
0:00:31.6]} 28. Bg2 {[%clk 0:00:33.8]} 28... Ng4 {[%clk 0:00:18.3]} 29. h3
{[%clk 0:00:30.6]} 29... Nf6 {[%clk 0:00:18.1]} 30. a4 {[%clk 0:00:29.3]} 30...
Nd5 {[%clk 0:00:16.9]} 31. Red1 {[%clk 0:00:20.3]} 31... Nb4 {[%clk 0:00:16.6]}
32. Ba3 {[%clk 0:00:18.4]} 32... Na6 {[%clk 0:00:14.8]} 33. Bb2 {[%clk
0:00:17.8]} 33... Nb4 {[%clk 0:00:14.5]} 34. Qc3 {[%clk 0:00:14.3]} 34... Bf8
{[%clk 0:00:14.4]} 35. Qb3 {[%clk 0:00:13.3]} 35... Rc8 {[%clk 0:00:11.8]} 36.
Ba3 {[%clk 0:00:12.3]} 36... Nd5 {[%clk 0:00:11.2]} 37. Bxf8 {[%clk 0:00:12.5]}
37... Rxf8 {[%clk 0:00:11.2]} 38. Nb2 {[%clk 0:00:11.4]} 38... Nxe3 {[%clk
0:00:05.6]} 39. fxe3 {[%clk 0:00:10.1]} 39... Qxg3 {[%clk 0:00:06.3]} 40. Nxd3
{[%clk 0:00:09.2]} 40... Rg6 {[%clk 0:00:05.8]} 41. Ne1 {[%clk 0:00:07.7]} 41...
Rf6 {[%clk 0:00:06.2]} 42. Rd2 {[%clk 0:00:06.4]} 42... h5 {[%clk 0:00:06.1]}
43. Re2 {[%clk 0:00:06.2]} 43... g5 {[%clk 0:00:05.3]} 44. Qc3 {[%clk
0:00:05.5]} 44... Rf5 {[%clk 0:00:05.1]} 45. Qc7 {[%clk 0:00:05.7]} 45... Qh4
{[%clk 0:00:04.7]} 46. Qd7 {[%clk 0:00:06.2]} 46... Rf6 {[%clk 0:00:04.5]} 47.
Rc8 {[%clk 0:00:06.3]} 47... Kg7 {[%clk 0:00:04.3]} 48. Rxf8 {[%clk 0:00:06.1]}
48... Kxf8 {[%clk 0:00:05.2]} 49. Qd4 {[%clk 0:00:06.1]} 49... Re6 {[%clk
0:00:05.1]} 50. Qb4+ {[%clk 0:00:05]} 50... Kg7 {[%clk 0:00:05.1]} 51. Nc2
{[%clk 0:00:05.1]} 51... g4 {[%clk 0:00:05.3]} 52. Nd4 {[%clk 0:00:04.9]} 52...
Rf6 {[%clk 0:00:05.3]} 53. Qe1 {[%clk 0:00:05.2]} 53... Qg5 {[%clk 0:00:04.9]}
54. h4 {[%clk 0:00:04.7]} 54... Qe5 {[%clk 0:00:04.8]} 55. Rf2 {[%clk
0:00:04.7]} 55... Kh7 {[%clk 0:00:02.4]} 56. Rxf6 {[%clk 0:00:04.5]} 56... Qxf6
{[%clk 0:00:03.3]} 57. Qf2 {[%clk 0:00:04.9]} 1-0